[Event "Titled Tuesday Blitz March 22 Late 2022"]
[White "Jones, Gawain C B"]
[Black "Weber, Samuel"]
[WhiteFideId "409561"]
[BlackFideId "12924008"]
[WhiteElo "2657"]
[BlackElo "2215"]
[Result "1-0"]
[Round "01"]
[TimeControl "180+1"]
[Date "2022.03.22"]
[WhiteClock "0:01:05"]
[BlackClock "0:01:40"]

1. a3 {[%clk 0:02:59]}  Nf6 {[%clk 0:02:50]} 2. Nf3 {[%clk 0:02:56]}  d6 {[%clk 0:02:49]} 3. d4 {[%clk 0:02:56]}  Nbd7 {[%clk 0:02:50]} 4. Nc3 {[%clk 0:02:55]}  g6 {[%clk 0:02:50]} 5. e4 {[%clk 0:02:55]}  Bg7 {[%clk 0:02:51]} 6. Bc4 {[%clk 0:02:55]}  O-O {[%clk 0:02:50]} 7. e5 {[%clk 0:02:55]}  dxe5 {[%clk 0:02:48]} 8. dxe5 {[%clk 0:02:55]}  Ng4 {[%clk 0:02:42]} 9. e6 {[%clk 0:02:55]}  Nb6 {[%clk 0:02:41]} 10. exf7+ {[%clk 0:02:55]}  Kh8 {[%clk 0:02:39]} 11. Qxd8 {[%clk 0:02:51]}  Rxd8 {[%clk 0:02:39]} 12. Bb3 {[%clk 0:02:50]}  c5 {[%clk 0:02:35]} 13. Be3 {[%clk 0:02:47]}  Nxe3 {[%clk 0:02:30]} 14. fxe3 {[%clk 0:02:47]}  c4 {[%clk 0:02:30]} 15. Ba2 {[%clk 0:02:45]}  Bxc3+ {[%clk 0:02:27]} 16. bxc3 {[%clk 0:02:45]}  Kg7 {[%clk 0:02:28]} 17. O-O {[%clk 0:02:34]}  Be6 {[%clk 0:02:04]} 18. Ng5 {[%clk 0:02:32]}  Bd5 {[%clk 0:02:05]} 19. Rad1 {[%clk 0:02:23]}  h6 {[%clk 0:02:05]} 20. Rxd5 {[%clk 0:02:20]}  Rxd5 {[%clk 0:01:58]} 21. Ne6+ {[%clk 0:02:19]}  Kh7 {[%clk 0:01:57]} 22. f8=Q {[%clk 0:02:18]}  Rxf8 {[%clk 0:01:57]} 23. Nxf8+ {[%clk 0:02:17]}  Kg7 {[%clk 0:01:56]} 24. Ne6+ {[%clk 0:02:17]}  Kg8 {[%clk 0:01:57]} 25. Rf8+ {[%clk 0:02:16]}  Kh7 {[%clk 0:01:56]} 26. Rf7+ {[%clk 0:02:16]}  Kh8 {[%clk 0:01:56]} 27. a4 {[%clk 0:01:43]}  Ra5 {[%clk 0:01:51]} 28. Rf8+ {[%clk 0:01:26]}  Kh7 {[%clk 0:01:51]} 29. Rf7+ {[%clk 0:01:24]}  Kg8 {[%clk 0:01:48]} 30. Rg7+ {[%clk 0:01:16]}  Kh8 {[%clk 0:01:48]} 31. Rxg6 {[%clk 0:01:16]}  Rxa4 {[%clk 0:01:47]} 32. Rxh6+ {[%clk 0:01:14]}  Kg8 {[%clk 0:01:47]} 33. h4 {[%clk 0:01:10]}  Rxa2 {[%clk 0:01:45]} 34. Rg6+ {[%clk 0:01:06]}  Kf7 {[%clk 0:01:45]} 35. h5 {[%clk 0:01:06]}  Ra5 {[%clk 0:01:41]} 36. Ng5+ {[%clk 0:01:05]}  Kf8 {[%clk 0:01:40]} 37. h6 {[%clk 0:01:05]} 1-0


[Site "https://www.chess.com"]

[Event "Titled Tuesday Blitz March 22 Late 2022"]
[White "Kamsky, Gata"]
[Black "Vovk, Orest"]
[WhiteFideId "2000024"]
[BlackFideId "14113490"]
[WhiteElo "2645"]
[BlackElo "2203"]
[Result "1-0"]
[Round "01"]
[TimeControl "180+1"]
[Date "2022.03.22"]
[WhiteClock "0:00:38"]
[BlackClock "0:00:10"]

1. d4 {[%clk 0:03:00]}  e5 {[%clk 0:02:58]} 2. dxe5 {[%clk 0:02:59]}  Nc6 {[%clk 0:02:58]} 3. Nf3 {[%clk 0:02:59]}  Qe7 {[%clk 0:02:58]} 4. g3 {[%clk 0:02:56]}  Nxe5 {[%clk 0:02:57]} 5. Nxe5 {[%clk 0:02:56]}  Qxe5 {[%clk 0:02:57]} 6. Bg2 {[%clk 0:02:56]}  Qd6 {[%clk 0:02:55]} 7. Qxd6 {[%clk 0:02:52]}  Bxd6 {[%clk 0:02:54]} 8. c4 {[%clk 0:02:44]}  Bb4+ {[%clk 0:02:52]} 9. Bd2 {[%clk 0:02:44]}  Bxd2+ {[%clk 0:02:50]} 10. Kxd2 {[%clk 0:02:44]}  Nf6 {[%clk 0:02:51]} 11. Nc3 {[%clk 0:02:44]}  a6 {[%clk 0:02:50]} 12. c5 {[%clk 0:02:36]}  Rb8 {[%clk 0:02:47]} 13. Rhd1 {[%clk 0:02:34]}  b6 {[%clk 0:02:45]} 14. cxb6 {[%clk 0:02:34]}  Rxb6 {[%clk 0:02:43]} 15. b3 {[%clk 0:02:34]}  Bb7 {[%clk 0:02:41]} 16. Bxb7 {[%clk 0:02:25]}  Rxb7 {[%clk 0:02:41]} 17. Rac1 {[%clk 0:02:25]}  O-O {[%clk 0:02:39]} 18. Ke1 {[%clk 0:02:22]}  Re8 {[%clk 0:02:33]} 19. f3 {[%clk 0:02:21]}  d6 {[%clk 0:02:21]} 20. Kf2 {[%clk 0:02:20]}  g6 {[%clk 0:02:20]} 21. Na4 {[%clk 0:02:11]}  Re5 {[%clk 0:02:10]} 22. e4 {[%clk 0:02:08]}  Rh5 {[%clk 0:02:03]} 23. Kg2 {[%clk 0:02:06]}  Rhb5 {[%clk 0:02:01]} 24. Rc6 {[%clk 0:02:04]}  Ra7 {[%clk 0:01:52]} 25. Rdc1 {[%clk 0:02:04]}  Rbb7 {[%clk 0:01:52]} 26. e5 {[%clk 0:01:53]}  Ne8 {[%clk 0:01:48]} 27. exd6 {[%clk 0:01:52]}  cxd6 {[%clk 0:01:45]} 28. Rc8 {[%clk 0:01:49]}  Re7 {[%clk 0:01:44]} 29. Kf2 {[%clk 0:01:48]}  Kg7 {[%clk 0:01:43]} 30. R8c6 {[%clk 0:01:41]}  a5 {[%clk 0:01:40]} 31. Nc3 {[%clk 0:01:26]}  Re5 {[%clk 0:01:33]} 32. f4 {[%clk 0:01:22]}  Re6 {[%clk 0:01:32]} 33. Kf3 {[%clk 0:01:17]}  Nf6 {[%clk 0:01:26]} 34. Rd1 {[%clk 0:01:05]}  d5 {[%clk 0:01:23]} 35. Rxe6 {[%clk 0:00:58]}  fxe6 {[%clk 0:01:22]} 36. Nb5 {[%clk 0:00:58]}  Rb7 {[%clk 0:01:13]} 37. Nd4 {[%clk 0:00:58]}  Rb6 {[%clk 0:01:06]} 38. Rc1 {[%clk 0:00:58]}  Ne4 {[%clk 0:01:04]} 39. Rc6 {[%clk 0:00:54]}  Rxc6 {[%clk 0:00:55]} 40. Nxc6 {[%clk 0:00:54]}  a4 {[%clk 0:00:42]} 41. bxa4 {[%clk 0:00:54]}  Nc5 {[%clk 0:00:41]} 42. a5 {[%clk 0:00:54]}  Na6 {[%clk 0:00:39]} 43. a3 {[%clk 0:00:51]}  Kf7 {[%clk 0:00:39]} 44. Nb4 {[%clk 0:00:51]}  Nc7 {[%clk 0:00:38]} 45. Ke3 {[%clk 0:00:47]}  Ke7 {[%clk 0:00:38]} 46. Kd4 {[%clk 0:00:47]}  Kd6 {[%clk 0:00:37]} 47. a4 {[%clk 0:00:47]}  g5 {[%clk 0:00:33]} 48. a6 {[%clk 0:00:46]}  gxf4 {[%clk 0:00:31]} 49. gxf4 {[%clk 0:00:46]}  h5 {[%clk 0:00:29]} 50. a7 {[%clk 0:00:45]}  h4 {[%clk 0:00:22]} 51. h3 {[%clk 0:00:45]}  Kd7 {[%clk 0:00:18]} 52. Kc5 {[%clk 0:00:43]}  Kc8 {[%clk 0:00:13]} 53. Kc6 {[%clk 0:00:42]}  d4 {[%clk 0:00:12]} 54. Nd3 {[%clk 0:00:41]}  Na8 {[%clk 0:00:10]} 55. a5 {[%clk 0:00:41]}  Nc7 {[%clk 0:00:10]} 56. a6 {[%clk 0:00:40]}  Na8 {[%clk 0:00:11]} 57. Nc5 {[%clk 0:00:39]}  Kd8 {[%clk 0:00:10]} 58. Kb7 {[%clk 0:00:38]} 1-0


[Site "https://www.chess.com"]

[Event "Titled Tuesday Blitz March 22 Late 2022"]
[White "Kollars, Dmitrij"]
[Black "Rosen, Eric"]
[WhiteFideId "12909572"]
[BlackFideId "2032562"]
[WhiteElo "2584"]
[BlackElo "2362"]
[Result "1-0"]
[Round "01"]
[TimeControl "180+1"]
[Date "2022.03.22"]
[WhiteClock "0:00:45"]
[BlackClock "0:00:01"]

1. c4 {[%clk 0:02:59]}  e6 {[%clk 0:02:58]} 2. Nf3 {[%clk 0:02:58]}  d5 {[%clk 0:02:58]} 3. g3 {[%clk 0:02:58]}  Nf6 {[%clk 0:02:57]} 4. Bg2 {[%clk 0:02:58]}  dxc4 {[%clk 0:02:50]} 5. Qa4+ {[%clk 0:02:57]}  c6 {[%clk 0:02:50]} 6. Qxc4 {[%clk 0:02:56]}  b5 {[%clk 0:02:50]} 7. Qb3 {[%clk 0:02:55]}  Bb7 {[%clk 0:02:50]} 8. O-O {[%clk 0:02:53]}  Nbd7 {[%clk 0:02:48]} 9. d4 {[%clk 0:02:51]}  a6 {[%clk 0:02:48]} 10. Ne5 {[%clk 0:02:50]}  Nxe5 {[%clk 0:02:42]} 11. dxe5 {[%clk 0:02:50]}  Nd7 {[%clk 0:02:43]} 12. Bf4 {[%clk 0:02:48]}  Qc7 {[%clk 0:02:28]} 13. Nc3 {[%clk 0:02:47]}  c5 {[%clk 0:02:24]} 14. Ne4 {[%clk 0:02:42]}  Be7 {[%clk 0:02:09]} 15. a4 {[%clk 0:02:33]}  Bxe4 {[%clk 0:01:59]} 16. Bxe4 {[%clk 0:02:32]}  Rb8 {[%clk 0:02:00]} 17. axb5 {[%clk 0:02:31]}  axb5 {[%clk 0:02:01]} 18. Rfd1 {[%clk 0:02:27]}  O-O {[%clk 0:01:47]} 19. Bxh7+ {[%clk 0:02:24]}  Kxh7 {[%clk 0:01:32]} 20. Qd3+ {[%clk 0:02:24]}  Kg8 {[%clk 0:01:33]} 21. Qxd7 {[%clk 0:02:24]}  Rfc8 {[%clk 0:01:33]} 22. Ra7 {[%clk 0:02:23]}  Qxd7 {[%clk 0:01:18]} 23. Rdxd7 {[%clk 0:02:24]}  Bf8 {[%clk 0:01:19]} 24. Rxf7 {[%clk 0:02:06]}  c4 {[%clk 0:01:17]} 25. Rfc7 {[%clk 0:01:47]}  b4 {[%clk 0:01:13]} 26. Rab7 {[%clk 0:01:28]}  c3 {[%clk 0:01:11]} 27. bxc3 {[%clk 0:01:24]}  Rxc7 {[%clk 0:00:32]} 28. Rxb8 {[%clk 0:01:20]}  bxc3 {[%clk 0:00:32]} 29. Bc1 {[%clk 0:01:15]}  Rd7 {[%clk 0:00:12]} 30. Ba3 {[%clk 0:01:09]}  Rf7 {[%clk 0:00:06]} 31. Rc8 {[%clk 0:01:06]}  c2 {[%clk 0:00:03]} 32. Bxf8 {[%clk 0:01:04]}  Rxf8 {[%clk 0:00:03]} 33. Rxc2 {[%clk 0:01:04]}  g5 {[%clk 0:00:02]} 34. Rc4 {[%clk 0:00:59]}  Re8 {[%clk 0:00:01]} 35. Rg4 {[%clk 0:00:58]}  Kf7 {[%clk 0:00:01]} 36. Rxg5 {[%clk 0:00:58]}  Rc8 {[%clk 0:00:02]} 37. Kg2 {[%clk 0:00:58]}  Rc2 {[%clk 0:00:02]} 38. e3 {[%clk 0:00:58]}  Re2 {[%clk 0:00:03]} 39. Rg4 {[%clk 0:00:58]}  Re1 {[%clk 0:00:03]} 40. Rf4+ {[%clk 0:00:58]}  Kg6 {[%clk 0:00:04]} 41. Rf6+ {[%clk 0:00:58]}  Kg5 {[%clk 0:00:05]} 42. h3 {[%clk 0:00:56]}  Re2 {[%clk 0:00:05]} 43. Rxe6 {[%clk 0:00:51]}  Kf5 {[%clk 0:00:05]} 44. Re8 {[%clk 0:00:51]}  Ra2 {[%clk 0:00:05]} 45. e6 {[%clk 0:00:50]}  Kf6 {[%clk 0:00:06]} 46. h4 {[%clk 0:00:49]}  Ra5 {[%clk 0:00:05]} 47. g4 {[%clk 0:00:49]}  Ra2 {[%clk 0:00:04]} 48. Kg3 {[%clk 0:00:49]}  Ra1 {[%clk 0:00:04]} 49. Kf4 {[%clk 0:00:49]}  Ra4+ {[%clk 0:00:04]} 50. e4 {[%clk 0:00:49]}  Ra2 {[%clk 0:00:05]} 51. f3 {[%clk 0:00:49]}  Ra6 {[%clk 0:00:03]} 52. h5 {[%clk 0:00:48]}  Ra7 {[%clk 0:00:02]} 53. Rf8+ {[%clk 0:00:46]}  Kxe6 {[%clk 0:00:01]} 54. g5 {[%clk 0:00:46]}  Ra6 {[%clk 0:00:01]} 55. Rf6+ {[%clk 0:00:45]} 1-0


[Site "https://www.chess.com"]

[Event "Titled Tuesday Blitz March 22 Late 2022"]
[White "Kujawski, Adam"]
[Black "Thavandiran, Shiyam"]
[WhiteFideId "1100920"]
[BlackFideId "2605058"]
[WhiteElo "2053"]
[BlackElo "2357"]
[Result "0-1"]
[Round "01"]
[TimeControl "180+1"]
[Date "2022.03.22"]
[WhiteClock "0:00:02"]
[BlackClock "0:00:44"]

1. e4 {[%clk 0:02:59]}  e6 {[%clk 0:02:31]} 2. d4 {[%clk 0:02:58]}  d5 {[%clk 0:02:31]} 3. Nc3 {[%clk 0:02:58]}  Nf6 {[%clk 0:02:28]} 4. Bg5 {[%clk 0:02:57]}  dxe4 {[%clk 0:02:22]} 5. Nxe4 {[%clk 0:02:57]}  Nbd7 {[%clk 0:02:20]} 6. Nf3 {[%clk 0:02:56]}  h6 {[%clk 0:02:18]} 7. Nxf6+ {[%clk 0:02:55]}  Nxf6 {[%clk 0:02:19]} 8. Be3 {[%clk 0:02:54]}  Nd5 {[%clk 0:02:19]} 9. Qd2 {[%clk 0:02:54]}  Be7 {[%clk 0:02:17]} 10. Bd3 {[%clk 0:02:41]}  Nxe3 {[%clk 0:02:08]} 11. fxe3 {[%clk 0:02:41]}  O-O {[%clk 0:02:06]} 12. O-O {[%clk 0:02:41]}  c5 {[%clk 0:02:05]} 13. c3 {[%clk 0:02:40]}  b6 {[%clk 0:02:04]} 14. Be4 {[%clk 0:02:24]}  Rb8 {[%clk 0:02:03]} 15. Ne5 {[%clk 0:02:21]}  Bb7 {[%clk 0:01:50]} 16. Bxb7 {[%clk 0:02:15]}  Rxb7 {[%clk 0:01:51]} 17. Nc6 {[%clk 0:01:58]}  Qd5 {[%clk 0:01:50]} 18. Nxe7+ {[%clk 0:01:58]}  Rxe7 {[%clk 0:01:51]} 19. Qe2 {[%clk 0:01:35]}  e5 {[%clk 0:01:45]} 20. e4 {[%clk 0:01:34]}  exd4 {[%clk 0:01:43]} 21. exd5 {[%clk 0:01:00]}  Rxe2 {[%clk 0:01:43]} 22. cxd4 {[%clk 0:01:00]}  cxd4 {[%clk 0:01:12]} 23. Rad1 {[%clk 0:00:20]}  Re4 {[%clk 0:01:11]} 24. Kf2 {[%clk 0:00:10]}  Rd8 {[%clk 0:01:11]} 25. Kf3 {[%clk 0:00:09]}  Re3+ {[%clk 0:01:10]} 26. Kf4 {[%clk 0:00:09]}  g5+ {[%clk 0:01:02]} 27. Kg4 {[%clk 0:00:06]}  Rxd5 {[%clk 0:01:02]} 28. Rf6 {[%clk 0:00:05]}  Re4+ {[%clk 0:00:48]} 29. Kf3 {[%clk 0:00:04]}  Re6 {[%clk 0:00:46]} 30. Rxe6 {[%clk 0:00:03]}  fxe6 {[%clk 0:00:47]} 31. Ke4 {[%clk 0:00:04]}  Kf7 {[%clk 0:00:47]} 32. Kd3 {[%clk 0:00:04]}  Ke7 {[%clk 0:00:47]} 33. Rc1 {[%clk 0:00:03]}  Kd7 {[%clk 0:00:46]} 34. Rf1 {[%clk 0:00:03]}  Rf5 {[%clk 0:00:45]} 35. Re1 {[%clk 0:00:02]}  Rf2 {[%clk 0:00:44]} 0-1


[Site "https://www.chess.com"]

[Event "Titled Tuesday Blitz March 22 Late 2022"]
[White "Levitskiy, Andrey"]
[Black "Babazada, Khazar"]
[WhiteFideId "14132885"]
[BlackFideId "13413554"]
[WhiteElo "2301"]
[BlackElo "2418"]
[Result "0-1"]
[Round "01"]
[TimeControl "180+1"]
[Date "2022.03.22"]
[WhiteClock "0:00:06"]
[BlackClock "0:01:43"]

1. d4 {[%clk 0:02:57]}  Nf6 {[%clk 0:02:57]} 2. Bf4 {[%clk 0:02:58]}  g6 {[%clk 0:02:56]} 3. e3 {[%clk 0:02:57]}  Bg7 {[%clk 0:02:56]} 4. Nf3 {[%clk 0:02:58]}  O-O {[%clk 0:02:56]} 5. Be2 {[%clk 0:02:58]}  d6 {[%clk 0:02:55]} 6. O-O {[%clk 0:02:59]}  Nbd7 {[%clk 0:02:54]} 7. h3 {[%clk 0:02:59]}  Re8 {[%clk 0:02:54]} 8. Nc3 {[%clk 0:02:58]}  b6 {[%clk 0:02:52]} 9. Bh2 {[%clk 0:02:56]}  Bb7 {[%clk 0:02:51]} 10. a4 {[%clk 0:02:55]}  a5 {[%clk 0:02:50]} 11. Re1 {[%clk 0:02:53]}  e5 {[%clk 0:02:50]} 12. d5 {[%clk 0:02:51]}  Nc5 {[%clk 0:02:45]} 13. Bb5 {[%clk 0:02:48]}  Nfd7 {[%clk 0:02:41]} 14. e4 {[%clk 0:02:40]}  Rf8 {[%clk 0:02:41]} 15. Bxd7 {[%clk 0:02:23]}  Qxd7 {[%clk 0:02:41]} 16. Nb5 {[%clk 0:02:08]}  h6 {[%clk 0:02:37]} 17. c3 {[%clk 0:02:06]}  f5 {[%clk 0:02:36]} 18. Nd2 {[%clk 0:01:54]}  Rf7 {[%clk 0:02:30]} 19. b4 {[%clk 0:01:51]}  axb4 {[%clk 0:02:29]} 20. cxb4 {[%clk 0:01:52]}  Nd3 {[%clk 0:02:29]} 21. Re3 {[%clk 0:01:41]}  fxe4 {[%clk 0:02:18]} 22. Nxe4 {[%clk 0:01:37]}  Nxb4 {[%clk 0:02:18]} 23. Nbc3 {[%clk 0:00:54]}  Raf8 {[%clk 0:02:17]} 24. Rb1 {[%clk 0:00:48]}  Na6 {[%clk 0:02:17]} 25. a5 {[%clk 0:00:49]}  Qd8 {[%clk 0:02:04]} 26. axb6 {[%clk 0:00:48]}  cxb6 {[%clk 0:02:05]} 27. Qb3 {[%clk 0:00:46]}  Nc5 {[%clk 0:02:01]} 28. Qxb6 {[%clk 0:00:45]}  Qxb6 {[%clk 0:01:56]} 29. Rxb6 {[%clk 0:00:46]}  Nxe4 {[%clk 0:01:57]} 30. Rxe4 {[%clk 0:00:37]}  Rxf2 {[%clk 0:01:55]} 31. Bg3 {[%clk 0:00:34]}  Rf1+ {[%clk 0:01:55]} 32. Kh2 {[%clk 0:00:35]}  Bc8 {[%clk 0:01:49]} 33. Rxd6 {[%clk 0:00:27]}  Bf5 {[%clk 0:01:49]} 34. Re1 {[%clk 0:00:27]}  Rxe1 {[%clk 0:01:44]} 35. Bxe1 {[%clk 0:00:26]}  e4 {[%clk 0:01:45]} 36. Ne2 {[%clk 0:00:21]}  Be5+ {[%clk 0:01:45]} 37. Bg3 {[%clk 0:00:19]}  Bxd6 {[%clk 0:01:46]} 38. Bxd6 {[%clk 0:00:20]}  Rd8 {[%clk 0:01:47]} 39. Bf4 {[%clk 0:00:17]}  g5 {[%clk 0:01:46]} 40. Be3 {[%clk 0:00:15]}  Rxd5 {[%clk 0:01:46]} 41. Nd4 {[%clk 0:00:16]}  Kf7 {[%clk 0:01:45]} 42. g4 {[%clk 0:00:16]}  Bg6 {[%clk 0:01:45]} 43. Kg3 {[%clk 0:00:17]}  Ra5 {[%clk 0:01:45]} 44. h4 {[%clk 0:00:17]}  Ra3 {[%clk 0:01:44]} 45. Kf2 {[%clk 0:00:18]}  gxh4 {[%clk 0:01:45]} 46. Bf4 {[%clk 0:00:15]}  h3 {[%clk 0:01:44]} 47. Ne2 {[%clk 0:00:14]}  Rf3+ {[%clk 0:01:43]} 48. Kg1 {[%clk 0:00:14]}  e3 {[%clk 0:01:43]} 49. Bg3 {[%clk 0:00:11]}  Bd3 {[%clk 0:01:43]} 50. Nf4 {[%clk 0:00:09]}  Rxg3+ {[%clk 0:01:43]} 51. Kh2 {[%clk 0:00:10]}  e2 {[%clk 0:01:43]} 52. Kxg3 {[%clk 0:00:06]}  e1=Q+ {[%clk 0:01:43]} 53. Kxh3 {[%clk 0:00:07]}  Bf1+ {[%clk 0:01:44]} 54. Ng2 {[%clk 0:00:06]}  Qf2 {[%clk 0:01:43]} 0-1


[Site "https://www.chess.com"]

[Event "Titled Tuesday Blitz March 22 Late 2022"]
[White "Lopez Del Alamo, Antonio"]
[Black "Kaasen, Tor Fredrik"]
[WhiteFideId "2227339"]
[BlackFideId "1516647"]
[WhiteElo "2082"]
[BlackElo "2335"]
[Result "0-1"]
[Round "01"]
[TimeControl "180+1"]
[Date "2022.03.22"]
[WhiteClock "0:00:04"]
[BlackClock "0:00:09"]

1. e4 {[%clk 0:02:55]}  c5 {[%clk 0:02:59]} 2. Nf3 {[%clk 0:02:53]}  d6 {[%clk 0:02:59]} 3. d4 {[%clk 0:02:52]}  cxd4 {[%clk 0:03:00]} 4. Nxd4 {[%clk 0:02:53]}  Nf6 {[%clk 0:03:00]} 5. Nc3 {[%clk 0:02:52]}  a6 {[%clk 0:03:00]} 6. Be2 {[%clk 0:02:52]}  e5 {[%clk 0:03:00]} 7. Nb3 {[%clk 0:02:52]}  Be7 {[%clk 0:03:00]} 8. Be3 {[%clk 0:02:53]}  Be6 {[%clk 0:02:58]} 9. Nd5 {[%clk 0:02:52]}  Bxd5 {[%clk 0:02:49]} 10. exd5 {[%clk 0:02:52]}  O-O {[%clk 0:02:50]} 11. c4 {[%clk 0:02:49]}  Nbd7 {[%clk 0:02:43]} 12. O-O {[%clk 0:02:46]}  Ne8 {[%clk 0:02:35]} 13. Qd2 {[%clk 0:02:45]}  g6 {[%clk 0:02:32]} 14. Na5 {[%clk 0:02:43]}  Qc7 {[%clk 0:02:17]} 15. b4 {[%clk 0:02:41]}  f5 {[%clk 0:02:16]} 16. f3 {[%clk 0:02:34]}  Rc8 {[%clk 0:02:03]} 17. Rac1 {[%clk 0:02:32]}  b6 {[%clk 0:01:37]} 18. Nb3 {[%clk 0:02:18]}  Nef6 {[%clk 0:01:20]} 19. Rfd1 {[%clk 0:02:09]}  f4 {[%clk 0:01:19]} 20. Bf2 {[%clk 0:02:02]}  e4 {[%clk 0:01:20]} 21. fxe4 {[%clk 0:02:00]}  Nxe4 {[%clk 0:01:16]} 22. Qe1 {[%clk 0:02:00]}  Bf6 {[%clk 0:00:59]} 23. Bf3 {[%clk 0:01:58]}  Nxf2 {[%clk 0:00:58]} 24. Qxf2 {[%clk 0:01:59]}  Ne5 {[%clk 0:00:56]} 25. c5 {[%clk 0:01:31]}  bxc5 {[%clk 0:00:57]} 26. bxc5 {[%clk 0:01:30]}  dxc5 {[%clk 0:00:57]} 27. d6 {[%clk 0:01:26]}  Qg7 {[%clk 0:00:41]} 28. Bd5+ {[%clk 0:00:57]}  Kh8 {[%clk 0:00:41]} 29. Nxc5 {[%clk 0:00:43]}  f3 {[%clk 0:00:40]} 30. Bxf3 {[%clk 0:00:35]}  Nxf3+ {[%clk 0:00:33]} 31. gxf3 {[%clk 0:00:36]}  Qf7 {[%clk 0:00:12]} 32. d7 {[%clk 0:00:34]}  Rcd8 {[%clk 0:00:13]} 33. Qd2 {[%clk 0:00:31]}  Be5 {[%clk 0:00:11]} 34. Qd3 {[%clk 0:00:21]}  Qf4 {[%clk 0:00:09]} 35. Rc2 {[%clk 0:00:20]}  Qg5+ {[%clk 0:00:07]} 36. Rg2 {[%clk 0:00:19]}  Bxh2+ {[%clk 0:00:07]} 37. Kxh2 {[%clk 0:00:18]}  Qxc5 {[%clk 0:00:08]} 38. Qd4+ {[%clk 0:00:15]}  Qxd4 {[%clk 0:00:08]} 39. Rxd4 {[%clk 0:00:16]}  Rxf3 {[%clk 0:00:09]} 40. Re2 {[%clk 0:00:15]}  Kg7 {[%clk 0:00:05]} 41. Re8 {[%clk 0:00:15]}  Rf8 {[%clk 0:00:06]} 42. Re6 {[%clk 0:00:10]}  Rf7 {[%clk 0:00:05]} 43. Rxa6 {[%clk 0:00:06]}  Rfxd7 {[%clk 0:00:05]} 44. Rb4 {[%clk 0:00:04]}  h5 {[%clk 0:00:02]} 45. Ra3 {[%clk 0:00:04]}  Rd2+ {[%clk 0:00:03]} 46. Kh3 {[%clk 0:00:04]}  R2d3+ {[%clk 0:00:03]} 47. Rxd3 {[%clk 0:00:04]}  Rxd3+ {[%clk 0:00:04]} 48. Kh4 {[%clk 0:00:04]}  Kh6 {[%clk 0:00:04]} 49. Rb6 {[%clk 0:00:04]}  Rd4+ {[%clk 0:00:04]} 50. Kh3 {[%clk 0:00:03]}  Ra4 {[%clk 0:00:05]} 51. Rb2 {[%clk 0:00:03]}  Ra3+ {[%clk 0:00:05]} 52. Kh2 {[%clk 0:00:03]}  h4 {[%clk 0:00:06]} 53. Kg2 {[%clk 0:00:03]}  Kh5 {[%clk 0:00:06]} 54. Kh2 {[%clk 0:00:03]}  g5 {[%clk 0:00:07]} 55. Kg2 {[%clk 0:00:03]}  h3+ {[%clk 0:00:08]} 56. Kh2 {[%clk 0:00:03]}  Kh4 {[%clk 0:00:08]} 57. Kg1 {[%clk 0:00:03]}  g4 {[%clk 0:00:08]} 58. Kh1 {[%clk 0:00:04]}  Rc3 {[%clk 0:00:09]} 0-1


[Site "https://www.chess.com"]

[Event "Titled Tuesday Blitz March 22 Late 2022"]
[White "Luo, Terry"]
[Black "Coelho, Ramyres Santana"]
[WhiteFideId "30931045"]
[BlackFideId "2120690"]
[WhiteElo "2024"]
[BlackElo "1888"]
[Result "1-0"]
[Round "01"]
[TimeControl "180+1"]
[Date "2022.03.22"]
[WhiteClock "0:02:11"]
[BlackClock "0:00:09"]

1. d4 {[%clk 0:02:56]}  Nf6 {[%clk 0:02:59]} 2. c4 {[%clk 0:02:56]}  g6 {[%clk 0:02:59]} 3. Nc3 {[%clk 0:02:56]}  Bg7 {[%clk 0:02:59]} 4. e4 {[%clk 0:02:57]}  d6 {[%clk 0:02:59]} 5. Nf3 {[%clk 0:02:57]}  O-O {[%clk 0:03:00]} 6. Be2 {[%clk 0:02:58]}  e5 {[%clk 0:03:00]} 7. O-O {[%clk 0:02:59]}  Nc6 {[%clk 0:02:59]} 8. d5 {[%clk 0:02:59]}  Ne7 {[%clk 0:02:59]} 9. Ne1 {[%clk 0:02:59]}  Nd7 {[%clk 0:02:59]} 10. Be3 {[%clk 0:02:59]}  f5 {[%clk 0:02:59]} 11. f3 {[%clk 0:03:00]}  f4 {[%clk 0:03:00]} 12. Bf2 {[%clk 0:03:01]}  g5 {[%clk 0:03:00]} 13. Rc1 {[%clk 0:03:01]}  Ng6 {[%clk 0:03:00]} 14. c5 {[%clk 0:03:01]}  g4 {[%clk 0:02:49]} 15. cxd6 {[%clk 0:02:58]}  g3 {[%clk 0:02:38]} 16. hxg3 {[%clk 0:02:56]}  fxg3 {[%clk 0:02:38]} 17. Bxg3 {[%clk 0:02:56]}  cxd6 {[%clk 0:02:37]} 18. Nb5 {[%clk 0:02:56]}  Qg5 {[%clk 0:02:31]} 19. Bh2 {[%clk 0:02:54]}  Nf6 {[%clk 0:02:15]} 20. Nxd6 {[%clk 0:02:52]}  Bh3 {[%clk 0:02:10]} 21. Kh1 {[%clk 0:02:47]}  Nh5 {[%clk 0:01:43]} 22. gxh3 {[%clk 0:02:34]}  Ng3+ {[%clk 0:01:42]} 23. Bxg3 {[%clk 0:02:34]}  Qxg3 {[%clk 0:01:43]} 24. Ng2 {[%clk 0:02:31]}  Qxh3+ {[%clk 0:01:39]} 25. Kg1 {[%clk 0:02:32]}  Nh4 {[%clk 0:01:27]} 26. Nxh4 {[%clk 0:02:30]}  Qxh4 {[%clk 0:01:28]} 27. Rf2 {[%clk 0:02:24]}  Rf6 {[%clk 0:01:20]} 28. Nf5 {[%clk 0:02:20]}  Rg6+ {[%clk 0:01:15]} 29. Rg2 {[%clk 0:02:18]}  Rxg2+ {[%clk 0:01:12]} 30. Kxg2 {[%clk 0:02:19]}  Qg5+ {[%clk 0:01:10]} 31. Kf1 {[%clk 0:02:19]}  Rf8 {[%clk 0:00:57]} 32. Rc7 {[%clk 0:02:17]}  Bf6 {[%clk 0:00:44]} 33. Qc1 {[%clk 0:02:12]}  Qh5 {[%clk 0:00:17]} 34. Qh6 {[%clk 0:02:10]}  Qxh6 {[%clk 0:00:15]} 35. Nxh6+ {[%clk 0:02:11]}  Kh8 {[%clk 0:00:14]} 36. d6 {[%clk 0:02:11]}  Bg5 {[%clk 0:00:09]} 37. Nf7+ {[%clk 0:02:11]} 1-0


[Site "https://www.chess.com"]

[Event "Titled Tuesday Blitz March 22 Late 2022"]
[White "Manukyan, Sargis A."]
[Black "Bok, Benjamin"]
[WhiteFideId "13303970"]
[BlackFideId "1017063"]
[WhiteElo "2187"]
[BlackElo "2658"]
[Result "1-0"]
[Round "01"]
[TimeControl "180+1"]
[Date "2022.03.22"]
[WhiteClock "0:00:18"]
[BlackClock "0:00:02"]

1. d4 {[%clk 0:02:55]}  d5 {[%clk 0:02:59]} 2. c4 {[%clk 0:02:51]}  c6 {[%clk 0:02:59]} 3. Nc3 {[%clk 0:02:50]}  Nf6 {[%clk 0:03:00]} 4. e3 {[%clk 0:02:50]}  e6 {[%clk 0:02:59]} 5. Nf3 {[%clk 0:02:51]}  Nbd7 {[%clk 0:02:59]} 6. Bd3 {[%clk 0:02:51]}  dxc4 {[%clk 0:02:59]} 7. Bxc4 {[%clk 0:02:51]}  b5 {[%clk 0:03:00]} 8. Bd3 {[%clk 0:02:52]}  Bb7 {[%clk 0:03:01]} 9. O-O {[%clk 0:02:51]}  a6 {[%clk 0:03:01]} 10. e4 {[%clk 0:02:52]}  b4 {[%clk 0:02:59]} 11. Na4 {[%clk 0:02:51]}  c5 {[%clk 0:03:00]} 12. e5 {[%clk 0:02:52]}  Nd5 {[%clk 0:02:59]} 13. Re1 {[%clk 0:02:53]}  Rc8 {[%clk 0:02:50]} 14. Qe2 {[%clk 0:02:33]}  cxd4 {[%clk 0:02:25]} 15. Nxd4 {[%clk 0:02:34]}  Nc5 {[%clk 0:02:09]} 16. Nxc5 {[%clk 0:02:28]}  Bxc5 {[%clk 0:02:10]} 17. Nb3 {[%clk 0:02:26]}  Bb6 {[%clk 0:01:58]} 18. Qg4 {[%clk 0:02:01]}  g6 {[%clk 0:01:05]} 19. Bg5 {[%clk 0:01:55]}  Qd7 {[%clk 0:01:04]} 20. Rad1 {[%clk 0:01:42]}  a5 {[%clk 0:00:36]} 21. Nd4 {[%clk 0:01:23]}  O-O {[%clk 0:00:33]} 22. Bb5 {[%clk 0:01:05]}  Qc7 {[%clk 0:00:33]} 23. Bh6 {[%clk 0:00:45]}  Rfd8 {[%clk 0:00:31]} 24. Rc1 {[%clk 0:00:44]}  Qb8 {[%clk 0:00:08]} 25. Nxe6 {[%clk 0:00:44]}  Rxc1 {[%clk 0:00:08]} 26. Bxc1 {[%clk 0:00:42]}  Rc8 {[%clk 0:00:07]} 27. Ng5 {[%clk 0:00:35]}  Rxc1 {[%clk 0:00:06]} 28. Rxc1 {[%clk 0:00:34]}  Qxe5 {[%clk 0:00:07]} 29. Qh4 {[%clk 0:00:26]}  h6 {[%clk 0:00:05]} 30. Qxh6 {[%clk 0:00:21]}  Bxf2+ {[%clk 0:00:05]} 31. Kh1 {[%clk 0:00:21]}  Nf6 {[%clk 0:00:02]} 32. Bc4 {[%clk 0:00:18]}  Bd5 {[%clk 0:00:01]} 33. Bxd5 {[%clk 0:00:18]}  Qxd5 {[%clk 0:00:02]} 34. Rc8+ {[%clk 0:00:18]} 1-0


[Site "https://www.chess.com"]